[Event "Tatry Open 2018"]
[Site "Tatranska Lomnica"]
[Date "2018.10.07"]
[Round "9"]
[White "Splichal, Stanislav"]
[Black "Kolesar, Milan"]
[Result "1/2-1/2"]
[ECO "A05"]
[WhiteElo "2154"]
[BlackElo "2133"]
[Annotator "NA"]
[PlyCount "115"]
[EventDate "2018.09.30"]
[EventType "swiss"]
[EventCountry "SVK"]
[SourceTitle "playchess.com"]
[Source "ChessBase"]
[SourceQuality "1"]
[TimeControl "40/5400+30:1800+30"]

1. Nf3 {[%emt 0:00:00]} Nf6 {[%emt 0:00:00]} 2. d4 {[%emt 0:00:00]} d5 {[%emt 0:00:00]} 3. c4 {[%emt 0:00:17]} c6 {[%emt 0:00:00]} 4. Qc2 {[%emt 0:00:38]} dxc4 {[%emt 0:00:10]} 5. Qxc4 {[%emt 0:00:09]} Bf5 {[%emt 0:00:11]} 6. Nc3 {[%emt 0:02:50]} e6 {[%emt 0:00:27]} 7. g3 {[%emt 0:01:35]} Nbd7 {[%emt 0:00:27]} 8. Bg2 {[%emt 0:00:11]} Be7 {[%emt 0:00:26]} 9. O-O {[%emt 0:00:35]} O-O {[%emt 0:00:22]} 10. Bg5 {[%emt 0:07:33]} h6 {[%emt 0:00:48]} 11. Bxf6 {[%emt 0:00:21] LiveBook: 46 Games D23: Queen's Gambit Accepted: 3 Nf3 Nf6 sidelines} Nxf6 {[%emt 0:00:57]} (11... Bxf6 12. h3 Qb6 13. e4 Bg6 14. Rfd1 Rfd8 15. Rd2 Rac8 16. Rad1 a6 17. Kh2 Qa7 18. Qe2 Qb8 {0-1 (66) Ibarra Jerez,J (2545)-Salgado Lopez,I (2616) Madrid 2015}) 12. Rfe1 {[%emt 0:06:54]} Qb6 $146 {[%emt 0:05:49]} ({Predecessor:} 12... Rc8 13. e4 Bg6 14. b4 Qb6 15. a3 Rfd8 16. Rad1 a5 17. Ne5 Bh5 18. bxa5 Qxa5 {½-½ (52) Yaksin,O (2231)-Lugovskoy,D (1964) Sibenik 2007}) 13. e4 {[%emt 0:04:45]} Bh7 {[%emt 0:01:18]} 14. Ne5 {[%emt 0:03:15]} Rfd8 {[%emt 0:04:14]} 15. Red1 {[%emt 0:02:36]} Qb4 {[%emt 0:14:32]} 16. a3 {[%emt 0:03:47]} Qxc4 {[%emt 0:03:34]} 17. Nxc4 {[%emt 0:00:13]} Rac8 {[%emt 0:05:04]} 18. Rac1 {[%emt 0:03:40]} b5 {[%emt 0:17:46] [#]} 19. Na5 $1 {[%emt 0:13:07]} b4 {[%emt 0:00:42]} 20. axb4 {[%emt 0:04:55]} (20. Na4 $16) 20... Bxb4 {[%emt 0:00:35]} 21. Nb7 {[%emt 0:00:36]} Re8 {[%emt 0:09:30]} 22. Nc5 {[%emt 0:06:05]} e5 {[%emt 0:07:38]} 23. dxe5 {[%emt 0:02:09]} Rxe5 {[%emt 0:03:36]} 24. Nd7 {[%emt 0:02:18]} Nxd7 {[%emt 0:04:08]} 25. Rxd7 {[%emt 0:00:28]} a5 {[%emt 0:02:59]} 26. f4 {[%emt 0:06:13]} Ree8 {[%emt 0:05:21]} 27. e5 {[%emt 0:02:30]} Bf5 {[%emt 0:00:35]} 28. Rb7 {[%emt 0:00:55]} f6 {[%emt 0:04:15]} 29. exf6 {[%emt 0:00:56]} gxf6 {[%emt 0:00:01]} 30. Bf3 {[%emt 0:00:24]} Re7 {[%emt 0:03:08]} 31. Rxe7 {[%emt 0:01:20]} Bxe7 {[%emt 0:00:01]} 32. g4 {[%emt 0:01:29]} Bd7 {[%emt 0:02:27]} 33. f5 {[%emt 0:03:45]} Bc5+ {[%emt 0:02:42]} 34. Kg2 {[%emt 0:00:19]} Bd4 {[%emt 0:00:25]} 35. Rd1 {[%emt 0:00:37]} c5 {[%emt 0:01:36]} 36. Ne2 {[%emt 0:00:49]} Rb8 {[%emt 0:01:32]} 37. b3 {[%emt 0:01:26]} Rb4 {[%emt 0:00:21]} 38. Nxd4 {[%emt 0:01:14]} cxd4 {[%emt 0:00:06]} 39. Bd5+ {[%emt 0:00:11]} Kf8 {[%emt 0:00:21]} 40. Kf3 {[%emt 0:00:56]} h5 {[%emt 0:00:05]} 41. h3 {[%emt 0:30:28]} hxg4+ {[%emt 0:16:25]} 42. hxg4 {[%emt 0:00:00]} Ke7 {[%emt 0:02:00]} 43. Ra1 {[%emt 0:00:00]} a4 {[%emt 0:02:04]} 44. bxa4 {[%emt 0:00:00]} Bxa4 {[%emt 0:00:07]} 45. Be4 {[%emt 0:00:00]} Kd6 {[%emt 0:02:12]} 46. Kf4 {[%emt 0:07:19]} d3 {[%emt 0:04:55]} 47. Ke3 $11 {[%emt 0:00:22]} Ke5 {[%emt 0:03:28]} 48. Bxd3 {[%emt 0:01:18]} Rxg4 {[%emt 0:00:13]} 49. Re1 {[%emt 0:03:50]} Rh4 {[%emt 0:02:18]} 50. Kf3+ {[%emt 0:00:19]} Kd5 {[%emt 0:01:13]} 51. Re4 {[%emt 0:05:38]} Rh3+ {[%emt 0:00:37]} 52. Kg4 {[%emt 0:00:40]} Rxd3 {[%emt 0:00:37]} 53. Rxa4 {[%emt 0:00:05]} Rd4+ {[%emt 0:00:33]} 54. Rxd4+ {[%emt 0:00:06]} Kxd4 {[%emt 0:00:00]} 55. Kf4 {[%emt 0:01:24]} Kd5 {[%emt 0:00:08]} 56. Kf3 {[%emt 0:00:13]} Ke5 {[%emt 0:00:02]} 57. Ke3 {[%emt 0:00:11]} Kxf5 {[%emt 0:00:07] Ke4+ Ke5+} 58. Kf3 {[%emt 0:00:03]} 1/2-1/2

[Event "Tatry Open 2018"]
[Site "Tatranska Lomnica"]
[Date "2018.10.07"]
[Round "9"]
[White "Janos, Ivan"]
[Black "Mrvova, Alena"]
[Result "1-0"]
[ECO "B90"]
[WhiteElo "2109"]
[BlackElo "2200"]
[Annotator "NA"]
[PlyCount "113"]
[EventDate "2018.09.30"]
[EventType "swiss"]
[EventCountry "SVK"]
[SourceTitle "playchess.com"]
[Source "ChessBase"]
[SourceQuality "1"]
[TimeControl "40/5400+30:1800+30"]

{[%evp 8,110,39,30,32767,32767,32767,16,34,40,56,42,53,12,43,22,37,0,6,4,0,-14,-6,-2,5,20,22,-38,-17,32767,-5,-45,-38,-53,-35,-84,-70,-87,32767,-77,32767,32767,-27,-33,16,32767,32767,32767,32767,32767,60,40,28,22,27,0,241,271,231,292,32767,208,166,32767,238,161,32767,169,233,212,226,239,258,246,241,254,386,32767,379,32767,32767,32767,346,427,369,430,387,383,419,32767,32767,32767,32767,32767,32767,32767,32767,440,405,32767,536,32767,32767,5367,1052]} 1. e4 {[%emt 0:00:00]} c5 {[%emt 0:00:38]} 2. Nf3 {[%emt 0:00:00]} d6 {[%emt 0:00:39]} 3. d4 {[%emt 0:00:03]} cxd4 {[%emt 0:00:04]} 4. Nxd4 {[%emt 0:00:06]} Nf6 {[%emt 0:00:07]} 5. Nc3 {[%emt 0:00:26]} a6 {[%emt 0:00:31]} 6. h3 {[%emt 0:01:35]} e5 {[%emt 0:02:26]} 7. Nde2 {[%emt 0:00:10]} Be7 {[%emt 0:00:43]} 8. g4 {[%emt 0:00:45] B90: Sicilian Najdorf: Unusual White 6th moves, 6 Be3 Ng4 and 6 Be3 e5} Be6 {[%emt 0:01:23]} (8... O-O 9. Be3 Nbd7 10. Ng3 b5 11. g5 Ne8 12. h4 Bb7 13. Nd5 Bxd5 14. Qxd5 Nc7 15. Qd2 Ne6 {1-0 (42) Swiercz,D (2629)-Kempinski,R (2647) Poland 2015}) 9. Bg2 {[%emt 0:00:34]} O-O {[%emt 0:02:04]} 10. a4 {[%emt 0:06:09] LiveBook: 3 Games} Nbd7 {[%emt 0:01:51]} 11. O-O {[%emt 0:07:33]} Nb6 {[%emt 0:02:02]} 12. Nd5 $146 {[%emt 0:02:09]} ({Predecessor:} 12. Ng3 d5 13. exd5 Nfxd5 14. Nxd5 Nxd5 15. Nf5 Bc5 {½-½ (41) El Taher,F (2486)-Chumfwa,S (2340) Maputo 2011}) 12... Nbxd5 {[%emt 0:01:38]} 13. exd5 {[%emt 0:00:03]} Bd7 {[%emt 0:00:14]} 14. c3 {[%emt 0:02:37]} Ne8 {[%emt 0:01:45]} 15. Ng3 {[%emt 0:07:55]} g6 {[%emt 0:02:42]} 16. Bh6 {[%emt 0:09:25]} Ng7 {[%emt 0:01:44]} 17. Qd2 {[%emt 0:01:26]} (17. c4 $11) 17... f5 {[%emt 0:00:58]} 18. gxf5 {[%emt 0:09:03]} Bxf5 {[%emt 0:01:01]} 19. f4 {[%emt 0:03:22]} Bh4 {[%emt 0:02:57]} 20. Ne4 {[%emt 0:03:41]} Qb6+ {[%emt 0:04:50]} 21. Kh2 {[%emt 0:00:27]} Bxe4 {[%emt 0:01:59]} 22. Bxe4 {[%emt 0:00:02]} exf4 {[%emt 0:00:32]} 23. Bxf4 {[%emt 0:05:30]} Nh5 {[%emt 0:01:26]} 24. Be3 {[%emt 0:03:27]} Qc7 {[%emt 0:00:11]} 25. Bh6 {[%emt 0:00:28]} Rfe8 {[%emt 0:07:02]} 26. Bf3 {[%emt 0:01:57]} Ng3 {[%emt 0:00:36]} 27. Rg1 {[%emt 0:02:18]} Nf5 {[%emt 0:01:49]} 28. Bg4 {[%emt 0:01:37]} Ng7 {[%emt 0:09:04]} 29. Qd4 {[%emt 0:01:03]} Re5 {[%emt 0:02:46]} 30. Raf1 {[%emt 0:00:21]} Qe7 {[%emt 0:01:21]} 31. Qf4 {[%emt 0:06:17]} (31. Bf4 $14) 31... Re4 $2 {[%emt 0:04:12] [#]} (31... Bg5 $11 {and Black has nothing to worry.} 32. Bxg5 Rxg5) 32. Be6+ $1 {[%emt 0:01:54]} Rxe6 {[%emt 0:00:07]} 33. dxe6 {[%emt 0:00:14]} Nxe6 {[%emt 0:01:08]} 34. Qe4 {[%emt 0:01:51]} Bf6 {[%emt 0:02:17]} 35. Bf4 {[%emt 0:02:35]} Kg7 {[%emt 0:02:59]} 36. Bg3 {[%emt 0:00:22]} Re8 {[%emt 0:01:25]} 37. Rd1 {[%emt 0:00:39]} Ng5 {[%emt 0:00:07]} 38. Qxe7+ {[%emt 0:01:59]} Rxe7 {[%emt 0:03:48]} 39. Bxd6 {[%emt 0:01:00]} Re3 {[%emt 0:00:38]} 40. Rg3 {[%emt 0:01:32]} Re4 {[%emt 0:03:34]} 41. Rf1 {[%emt 0:31:27]} Rxa4 {[%emt 0:32:24]} (41... Re2+ {was called for.} 42. Rg2 Re3) 42. Bf8+ {[%emt 0:02:24]} Kxf8 {[%emt 0:00:40]} 43. Rxf6+ {[%emt 0:00:14]} Kg7 {[%emt 0:00:12]} 44. Rb6 {[%emt 0:00:14]} Kh6 {[%emt 0:00:16]} 45. Rxb7 {[%emt 0:00:56]} Re4 {[%emt 0:00:20]} 46. Rg4 {[%emt 0:04:17]} Re2+ {[%emt 0:00:06]} 47. Kg3 {[%emt 0:00:24]} Re3+ {[%emt 0:01:42]} 48. Kg2 {[%emt 0:00:07]} Ne6 {[%emt 0:00:17]} 49. Rh4+ {[%emt 0:01:56]} Kg5 {[%emt 0:00:05]} 50. Rhxh7 {[%emt 0:00:12]} Rd3 {[%emt 0:01:38]} 51. Rbd7 {[%emt 0:01:31]} Nf4+ {[%emt 0:00:32]} 52. Kf1 {[%emt 0:04:14]} Rf3+ {[%emt 0:01:11]} 53. Kg1 {[%emt 0:00:31]} Rg3+ {[%emt 0:01:47]} 54. Kf2 {[%emt 0:00:17]} Rg2+ {[%emt 0:00:15]} 55. Kf3 {[%emt 0:00:16]} Rxb2 $18 {[%emt 0:01:00]} 56. h4+ {[%emt 0:00:14]} Kf5 {[%emt 0:00:05]} 57. Rdf7+ {[%emt 0:00:15]} 1-0

[Event "Tatry Open 2018"]
[Site "Tatranska Lomnica"]
[Date "2018.10.07"]
[Round "9"]
[White "Mrva, Vladimir"]
[Black "Zatko, Gregor"]
[Result "1-0"]
[ECO "B40"]
[WhiteElo "2078"]
[BlackElo "2194"]
[Annotator "NA"]
[PlyCount "71"]
[EventDate "2018.09.30"]
[EventType "swiss"]
[EventCountry "SVK"]
[SourceTitle "playchess.com"]
[Source "ChessBase"]
[SourceQuality "1"]
[TimeControl "40/5400+30:1800+30"]

{[%evp 9,70,44,48,35,40,20,48,36,43,30,64,48,66,32767,65,32767,58,62,66,47,32767,32767,93,64,91,83,32767,32767,32767,39,32767,32767,32767,46,32767,32767,32767,72,32767,-41,0,-26,114,32767,32767,32767,94,89,32767,79,32767,102,32767,32767,187,207,268,331,32767,32767,32767,32767,922]} 1. e4 {[%emt 0:00:00]} c5 {[%emt 0:00:15]} 2. Nf3 {[%emt 0:00:00]} e6 {[%emt 0:00:07]} 3. c4 {[%emt 0:01:09]} a6 {[%emt 0:00:13]} 4. Nc3 {[%emt 0:02:24]} Qc7 {[%emt 0:00:36]} 5. d4 {[%emt 0:04:28]} cxd4 {[%emt 0:00:05]} 6. Nxd4 {[%emt 0:00:22]} Nf6 {[%emt 0:00:07]} 7. a3 {[%emt 0:06:40] LiveBook: 910 Games} b6 {[%emt 0:00:10]} (7... Nxe4 $5 8. Nxe4 Qe5 $11) 8. Bd3 {[%emt 0:03:00]} Bb7 {[%emt 0:00:29]} 9. O-O {[%emt 0:02:08]} Be7 {[%emt 0:00:21]} 10. Be3 {[%emt 0:02:54]} d6 {[%emt 0:00:35]} 11. Rc1 {[%emt 0:05:01]} Nbd7 {[%emt 0:00:34]} 12. f3 {[%emt 0:02:49]} O-O {[%emt 0:00:47]} 13. Qe1 {[%emt 0:03:23] B42: Sicilian: Kan Variation: 5 Bd3} Rac8 {[%emt 0:00:11]} 14. Qg3 $146 {[%emt 0:11:52]} ({Predecessor:} 14. Qf2 Qb8 15. Be2 Rfe8 16. Rfd1 Bd8 17. g3 Ne5 18. b3 Qa8 19. Bf4 Bc7 20. Bxe5 dxe5 21. Nc2 Re7 22. Ne3 Nd7 23. b4 Nb8 24. Rd2 {½-½ (80) Kumar,B (2060)-Das,S (2305) Nagpur 2012}) 14... Nh5 {[%emt 0:15:31]} 15. Qf2 {[%emt 0:05:57]} g6 {[%emt 0:04:17]} 16. Be2 {[%emt 0:09:01]} Nhf6 {[%emt 0:02:44]} 17. Rfd1 {[%emt 0:03:03]} Qb8 {[%emt 0:01:16]} 18. Kh1 {[%emt 0:03:08]} Rfe8 {[%emt 0:00:41]} 19. Bf1 {[%emt 0:03:05]} Bd8 {[%emt 0:01:26]} 20. Bh6 {[%emt 0:06:12]} Ne5 {[%emt 0:00:28]} 21. b3 $1 {[%emt 0:02:03]} Bc7 {[%emt 0:03:21]} 22. Qh4 {[%emt 0:01:34]} Ned7 {[%emt 0:03:15]} 23. Nc2 {[%emt 0:04:45]} Bd8 {[%emt 0:08:54]} 24. Bg5 {[%emt 0:01:39]} (24. Qf2 $14) 24... b5 {[%emt 0:10:28]} 25. Ne3 {[%emt 0:02:08]} Bc6 $2 {[%emt 0:04:09]} (25... Rc5 $1 $15 {bleibt weiter vorne.} 26. Rc2 (26. cxb5 Rxg5 27. bxa6 Rh5 $15) 26... bxc4 27. Bxc4 Rxg5 28. Qxg5 Nxe4) 26. cxb5 {[%emt 0:01:43]} Bxb5 {[%emt 0:02:32]} 27. Nxb5 {[%emt 0:05:19]} Rxc1 {[%emt 0:00:54]} 28. Rxc1 {[%emt 0:00:03]} axb5 {[%emt 0:00:07]} 29. a4 {[%emt 0:01:33]} bxa4 {[%emt 0:02:09]} 30. bxa4 {[%emt 0:00:06]} Qb2 {[%emt 0:13:06]} 31. Rd1 {[%emt 0:00:29]} d5 {[%emt 0:05:53]} (31... Be7 $16) 32. Bb5 {[%emt 0:01:49]} ({Much less strong is} 32. exd5 $6 exd5 33. Nxd5 Nxd5 $16) 32... d4 {[%emt 0:05:12]} (32... Qc3 {is a better defense.} 33. Nf1 (33. exd5 exd5 34. Nxd5 Nxd5 $16) 33... Qc2) 33. Nc4 {[%emt 0:02:25]} Qb3 {[%emt 0:00:44]} 34. Rf1 {[%emt 0:03:05]} d3 {[%emt 0:01:47]} 35. e5 {[%emt 0:01:15]} Rf8 $18 {[%emt 0:03:08]} 36. exf6 {[%emt 0:00:44]} 1-0

[Event "Tatry Open 2018"]
[Site "Tatranska Lomnica"]
[Date "2018.10.07"]
[Round "9"]
[White "Czajkowski, Ryszard"]
[Black "Cech, Dominik"]
[Result "0-1"]
[ECO "E73"]
[WhiteElo "2032"]
[BlackElo "2169"]
[Annotator "NA"]
[PlyCount "116"]
[EventDate "2018.09.30"]
[EventType "swiss"]
[EventCountry "SVK"]
[SourceTitle "playchess.com"]
[Source "ChessBase"]
[SourceQuality "1"]
[TimeControl "40/5400+30:1800+30"]

1. d4 {[%emt 0:00:00]} Nf6 {[%emt 0:05:11]} 2. c4 {[%emt 0:00:00]} g6 {[%emt 0:00:53]} 3. Nc3 {[%emt 0:00:00]} Bg7 {[%emt 0:00:07]} 4. e4 {[%emt 0:00:00]} d6 {[%emt 0:00:31]} 5. Be2 {[%emt 0:00:05]} O-O {[%emt 0:00:47]} 6. Bg5 {[%emt 0:00:13]} h6 {[%emt 0:02:56]} 7. Be3 {[%emt 0:05:40] LiveBook: 770 Games} c6 {[%emt 0:12:00]} 8. Qd2 {[%emt 0:02:32]} Kh7 {[%emt 0:00:25] E73: King's Indian: Averbakh Variation without 6...c5} 9. f3 {[%emt 0:00:17]} (9. h4 Ng4 10. Bxg4 Bxg4 11. f3 Bd7 12. g4 b5 13. cxb5 cxb5 14. Nge2 e6 15. f4 f6 16. Ng3 {1-0 (34) Stefansson,H (2549)-Gretarsson,A (2300) Reykjavik 2015}) 9... e5 {[%emt 0:02:37]} 10. g4 {[%emt 0:01:44]} Nfd7 {[%emt 0:20:18]} 11. h4 $146 {[%emt 0:05:18]} ({Predecessor:} 11. d5 cxd5 12. Nxd5 Nc6 13. h4 Nc5 14. O-O-O Ne6 15. Nh3 Ncd4 {0-1 (58) Chistiakov,A (1904)-Rudovskya,R Kiev 2005}) 11... Na6 {[%emt 0:07:57]} 12. O-O-O {[%emt 0:02:07]} Nc7 {[%emt 0:10:55]} 13. f4 {[%emt 0:15:50]} exf4 {[%emt 0:06:10]} 14. Bxf4 {[%emt 0:00:50]} c5 {[%emt 0:06:23] [#]} 15. Nf3 {[%emt 0:09:23]} ({Don't take} 15. Bxd6 $6 cxd4 16. Nd5 Nxd5 $16) ({Only move:} 15. dxc5 $1 $18 dxc5 16. Bd6) 15... cxd4 {[%emt 0:04:36]} 16. Nxd4 {[%emt 0:00:22]} Ne5 {[%emt 0:00:31]} 17. g5 {[%emt 0:10:04]} h5 {[%emt 0:00:55]} 18. Ndb5 {[%emt 0:02:28]} Nxb5 {[%emt 0:02:22]} 19. Nxb5 {[%emt 0:01:18]} Be6 {[%emt 0:00:47]} 20. b3 {[%emt 0:06:34]} a6 {[%emt 0:02:56]} 21. Nd4 {[%emt 0:05:30] [#]} (21. Qxd6 axb5 22. Bxe5 Qxd6 $17) 21... b5 $1 {[%emt 0:02:52]} 22. cxb5 {[%emt 0:04:51]} axb5 {[%emt 0:00:18]} 23. Kb1 {[%emt 0:01:04]} Qb6 {[%emt 0:06:50]} 24. Be3 {[%emt 0:10:53]} ({Don't go for} 24. Bxb5 $2 {[#]} Nf3 $1 $19 {[%mdl 512]}) (24. Bxe5 $17 Bxe5 25. Qb4) 24... Qb7 {[%emt 0:00:33]} 25. Nxe6 {[%emt 0:04:16]} fxe6 {[%emt 0:00:27]} 26. Qb4 {[%emt 0:01:28] [#]} (26. Rhe1 $142 Qxe4+ 27. Bd3 Nxd3 28. Qxd3 Qxh4 29. Bd4) 26... Rxa2 $3 {[%emt 0:01:30]} 27. Kxa2 {[%emt 0:07:52]} Ra8+ {[%emt 0:00:13]} 28. Kb1 {[%emt 0:00:02] [#]} Nc4 $2 {[%emt 0:01:06]} (28... Ra1+ $3 $19 {[%mdl 512]} 29. Kc2 (29. Kxa1 Nc6+) 29... Ra2+ 30. Kb1 Rxe2) 29. bxc4 {[%emt 0:02:41]} Qxe4+ {[%emt 0:00:47]} 30. Bd3 {[%emt 0:00:01]} Ra1+ $2 $11 {[%emt 0:00:29]} (30... Qxe3 $11 {and Black is okay.} 31. cxb5 Ra1+ 32. Kc2 Ra2+ 33. Kb1 Qf2 34. Bxg6+ Kh8) 31. Kc2 {[%emt 0:00:06]} Ra2+ {[%emt 0:00:10]} 32. Kb1 $1 {[%emt 0:00:42]} ({Don't blunder} 32. Kc1 $2 Qxe3+ 33. Rd2 Ra1+ 34. Kc2 Rxh1 $19) 32... Ra1+ {[%emt 0:00:07]} 33. Kc2 {[%emt 0:00:07]} Ra2+ {[%emt 0:00:48]} 34. Kb1 {[%emt 0:00:01]} Qa8 $2 {[%emt 0:00:27]} 35. Bd4 $4 {[%emt 0:01:46]} (35. Bc1 $18) 35... Bxd4 {[%emt 0:00:15]} 36. Bxg6+ {[%emt 0:00:02]} Kxg6 {[%emt 0:00:19]} 37. Rxd4 {[%emt 0:00:23]} Ra1+ {[%emt 0:00:26]} 38. Kb2 {[%emt 0:01:27]} Qa2+ $2 {[%emt 0:00:29]} (38... Rxh1 {setzt Matt} 39. cxb5 Qa1+ 40. Kb3 Rh3+ 41. Kc2 Qa2+ 42. Kc1 Rb3 43. Qxb3 Qxb3 44. Kd2 Kf5 45. Rd3 Qxb5 46. Rh3 Qb4+ 47. Kc2 Qg4 48. Rh2 Qg3 49. Re2 Qxh4 50. g6 Kxg6 51. Rxe6+ Kg5 52. Kd3 Qg3+ 53. Re3 h4 54. Kd4 Qg2 55. Kd3 h3 56. Re2 {[#]} Qxe2+ $1 {[%mdl 512]} 57. Kxe2 h2 58. Kd3 h1=Q 59. Kc3 Qc6+ 60. Kb2 Kf4 61. Ka2 Qb7 62. Ka3 Ke3 63. Ka2 Kd3 64. Ka3 Kc3 65. Ka4 Qb4#) 39. Kc3 {[%emt 0:00:03]} Rxh1 {[%emt 0:00:29]} 40. Qxd6 {[%emt 0:00:43] [#]} Rh3+ {[%emt 0:01:29]} (40... b4+ $142 $1 {[%mdl 512]} 41. Qxb4 (41. Kxb4 Rb1+) 41... Qa1+ 42. Kc2 Qxd4 43. Qd2 Qxc4+ 44. Kb2 Rxh4 45. Qf2 Qb5+ 46. Kc1 Rc4+ 47. Qc2+ Rxc2+ 48. Kxc2 Kxg5 49. Kc3 h4 50. Kd4 h3 51. Ke3 h2 52. Ke4 h1=Q+ 53. Kd4 Qh3 54. Ke4 Qd5#) 41. Kb4 {[%emt 0:17:16] [#]} Qa3+ $1 {[%emt 0:20:55]} 42. Kxb5 {[%emt 0:00:05]} Rb3+ {[%emt 0:00:16]} 43. Kc6 {[%emt 0:00:20]} Qa4+ {[%emt 0:04:38]} 44. Kc7 {[%emt 0:01:44]} Qa7+ $11 {[%emt 0:03:10]} 45. Kd8 {[%emt 0:01:59]} Rb8+ {[%emt 0:00:34]} 46. Qxb8 {[%emt 0:00:16]} Qxb8+ {[%emt 0:00:06]} 47. Ke7 {[%emt 0:00:39]} Kf5 {[%emt 0:01:24]} 48. c5 {[%emt 0:05:11]} Qc7+ {[%emt 0:00:41]} 49. Rd7 {[%emt 0:00:06]} Qxc5+ {[%emt 0:00:08]} 50. Kf7 {[%emt 0:00:05]} Qc6 {[%emt 0:02:06]} 51. Ra7 {[%emt 0:00:23]} e5 {[%emt 0:00:37]} 52. Ra1 {[%emt 0:00:38]} Qd7+ {[%emt 0:00:44]} 53. Kg8 {[%emt 0:00:15]} Qc8+ {[%emt 0:00:56]} 54. Kg7 {[%emt 0:00:05]} Qb7+ {[%emt 0:00:18]} 55. Kh6 {[%emt 0:01:14]} Qc6+ {[%emt 0:00:17]} 56. Kh7 {[%emt 0:00:26]} Qg6+ {[%emt 0:00:06]} 57. Kh8 {[%emt 0:00:05]} e4 {[%emt 0:00:44]} 58. Ra5+ {[%emt 0:02:12] Ke5} Kg4 {[%emt 0:00:50]} 0-1

[Event "Tatry Open 2018"]
[Site "Tatranska Lomnica"]
[Date "2018.10.07"]
[Round "9"]
[White "Hrbek, Stepan"]
[Black "Havelka, Ondrej"]
[Result "1-0"]
[ECO "A40"]
[WhiteElo "2026"]
[BlackElo "2150"]
[Annotator "NA"]
[PlyCount "89"]
[EventDate "2018.09.30"]
[EventType "swiss"]
[EventCountry "SVK"]
[SourceTitle "playchess.com"]
[Source "ChessBase"]
[SourceQuality "1"]
[TimeControl "40/5400+30:1800+30"]

{[%evp 9,84,32,17,12,4,-16,20,-24,32767,-50,-52,0,-47,-65,-27,-25,39,10,72,8,8,1,12,15,15,4,32767,14,58,32767,11,32767,32767,0,32767,32767,7,32767,32767,32767,32767,0,8,7,18,-285,-281,-225,-279,-385,-122,-130,-112,32767,32767,32767,-110,32767,32767,32767,-9,-8,32767,32767,561,665,32767,32767,32767,552,602,32767,32767,922,865,1363,1620]} 1. d4 {[%emt 0:00:00]} e6 {[%emt 0:00:00]} 2. c4 {[%emt 0:00:00]} b6 {[%emt 0:00:00]} 3. e4 {[%emt 0:13:43]} Bb7 {[%emt 0:00:07]} 4. Nc3 {[%emt 0:00:05]} Bb4 {[%emt 0:00:13]} 5. Qc2 {[%emt 0:00:47]} Qh4 {[%emt 0:05:29]} 6. Bd3 {[%emt 0:03:31]} f5 {[%emt 0:02:46]} 7. g3 {[%emt 0:02:29] LiveBook: 25 Games} Qe7 {[%emt 0:02:25] A40: Unusual replies to 1 d4} (7... Qh5 $15 8. Bd2 Nf6 9. f3 Nc6 10. Nb5 O-O 11. e5 a6 12. exf6 axb5 13. fxg7 Rfe8 14. Ne2 bxc4 15. Bxc4 Bxd2+ 16. Qxd2 Na5 17. Bb5 Nb3 18. Qe3 Nxa1 {0-1 (18) Vuckovic,B (2499)-Ivanisevic,I (2648) Belgrade 2014}) 8. Nge2 {[%emt 0:02:21]} Nf6 {[%emt 0:00:50]} 9. O-O {[%emt 0:00:32] [#]} Bxc3 $1 {[%emt 0:07:15]} 10. Nxc3 {[%emt 0:00:47]} Nc6 {[%emt 0:00:47]} 11. d5 {[%emt 0:07:13]} Nd4 $146 {[%emt 0:03:18]} ({Predecessor:} 11... Nb4 12. Qd1 fxe4 13. Nxe4 exd5 14. Nxf6+ Qxf6 15. Qe1+ {0-1 (62) Busu,C (2339)-Szabo,G (2514) Eforie Nord 2008}) 12. Qd1 {[%emt 0:00:30]} O-O {[%emt 0:01:33]} (12... fxe4 $15 13. Nxe4 exd5 14. cxd5 Nxd5) 13. Be3 {[%emt 0:04:23]} c5 {[%emt 0:01:43]} (13... fxe4 $11 {hält das Gleichgewicht.} 14. Nxe4 Nxe4 15. Bxe4 exd5) 14. dxc6 {[%emt 0:04:02]} (14. exf5 $1 $14 exd5 15. Bxd4 cxd4 16. Nxd5 Nxd5 17. cxd5) 14... Nxc6 {[%emt 0:00:02]} 15. exf5 {[%emt 0:04:41]} exf5 {[%emt 0:01:14]} 16. Be2 {[%emt 0:03:56]} Ne5 {[%emt 0:01:46]} 17. Bf4 {[%emt 0:02:26]} Rac8 {[%emt 0:14:24]} 18. Re1 {[%emt 0:07:43]} Rfe8 {[%emt 0:03:30]} 19. Bg5 {[%emt 0:03:47]} Qe6 {[%emt 0:11:12]} 20. Bxf6 {[%emt 0:01:41]} Qxf6 {[%emt 0:00:36]} 21. Nd5 {[%emt 0:01:20]} Qc6 {[%emt 0:00:23]} 22. Rc1 {[%emt 0:02:57]} b5 {[%emt 0:06:06]} 23. b3 {[%emt 0:03:20]} bxc4 {[%emt 0:14:28]} 24. bxc4 {[%emt 0:01:22]} Re6 {[%emt 0:00:56]} 25. Qc2 {[%emt 0:08:07]} g6 {[%emt 0:07:31]} 26. Qc3 {[%emt 0:01:38]} Qc5 {[%emt 0:03:13]} 27. Bf1 $2 {[%emt 0:07:17] [#]} (27. Qb2 $11 {and White stays safe.} Bc6 28. Red1) 27... Qxd5 $1 {[%emt 0:03:53]} 28. cxd5 {[%emt 0:00:30]} Rxc3 {[%emt 0:00:01]} 29. Rxe5 {[%emt 0:04:47]} (29. Rxc3 $142 Nf3+ 30. Rxf3 Rxe1 31. Ra3) 29... Rxe5 $2 {[%emt 0:01:32]} (29... Rxc1 $19 {is more deadly.} 30. dxe6 dxe6 31. Rxe6 Bd5 32. Re8+ Kf7) 30. Rxc3 {[%emt 0:00:04]} Re1 {[%emt 0:00:11]} ({Don't go for} 30... Bxd5 $2 31. Rc5 $18) 31. Kg2 {[%emt 0:06:10]} Bxd5+ {[%emt 0:00:01]} 32. f3 {[%emt 0:00:05]} Ra1 {[%emt 0:00:21]} 33. a3 {[%emt 0:00:36]} Ra2+ {[%emt 0:00:22]} 34. Kg1 {[%emt 0:01:29]} a5 {[%emt 0:01:47]} (34... Kf7 $17 35. Bb5 Ke7 36. Re3+ Kd8) 35. Rc5 {[%emt 0:00:44]} Rd2 {[%emt 0:00:32]} 36. Rxd5 {[%emt 0:00:04]} Rxd5 {[%emt 0:01:15]} 37. Bc4 {[%emt 0:00:04]} Kf7 {[%emt 0:00:04]} 38. Bxd5+ {[%emt 0:00:04]} Ke7 {[%emt 0:00:04]} 39. Kf2 {[%emt 0:00:24]} Kd6 {[%emt 0:00:04]} 40. Bg8 {[%emt 0:00:49]} h6 {[%emt 0:00:14]} 41. Bh7 {[%emt 0:30:15]} g5 {[%emt 0:30:14]} 42. Bxf5 {[%emt 0:00:04]} Kc6 $18 {[%emt 0:00:07]} 43. Ke3 {[%emt 0:00:25]} d5 {[%emt 0:00:06]} 44. Kd4 {[%emt 0:00:05]} Kb5 {[%emt 0:00:06]} 45. Bd7+ {[%emt 0:00:06]} 1-0